[Event "GER-ch Youth U14w 2019"]
[Site "Willingen"]
[Date "2019.06.15"]
[Round "9.12"]
[White "Sinner, Joselyne"]
[Black "Albayrak, Nese Pinar"]
[Result "1-0"]
[ECO "C48"]
[WhiteElo "1521"]
[BlackElo "1530"]
[Annotator "NA"]
[PlyCount "78"]
[EventDate "2019.06.07"]
[EventType "swiss"]
[EventRounds "9"]
[EventCountry "GER"]
[SourceTitle "playchess.com"]
[Source "ChessBase"]
[SourceQuality "1"]
[TimeControl "40/5400+30:1800+30"]

1. e4 {[%emt 0:00:00]} e5 {[%emt 0:00:00]} 2. Nf3 {[%emt 0:00:00]} Nc6 {[%emt 0:00:00]} 3. Nc3 {[%emt 0:00:00]} Nf6 {[%emt 0:00:00]} 4. Bb5 {[%emt 0:00:00]} Bd6 {[%emt 0:00:01]} 5. O-O {[%emt 0:00:04]} a6 {[%emt 0:00:33]} 6. Ba4 {[%emt 0:00:48]} O-O {[%emt 0:00:44]} 7. Re1 {[%emt 0:02:00]} Re8 {[%emt 0:01:32]} 8. d3 {[%emt 0:02:08]} h6 {[%emt 0:01:19]} 9. h3 {[%emt 0:03:09]} b5 {[%emt 0:03:21]} 10. Bb3 {[%emt 0:01:11]} Bc5 {[%emt 0:06:20]} 11. Be3 {[%emt 0:02:56]} Bxe3 {[%emt 0:02:56]} 12. fxe3 {[%emt 0:00:13]} Na5 {[%emt 0:00:33]} 13. Qd2 {[%emt 0:02:18]} Bb7 {[%emt 0:07:43]} 14. Rf1 {[%emt 0:06:58]} Nxb3 {[%emt 0:02:37]} 15. axb3 {[%emt 0:00:06]} c6 {[%emt 0:01:02]} 16. Qf2 {[%emt 0:10:14]} d5 {[%emt 0:12:53]} 17. exd5 {[%emt 0:03:11]} cxd5 {[%emt 0:00:29]} 18. Nh4 {[%emt 0:00:26]} d4 {[%emt 0:01:42]} 19. exd4 {[%emt 0:02:50]} Qxd4 {[%emt 0:04:26]} 20. Qxd4 {[%emt 0:04:04]} exd4 {[%emt 0:01:08]} 21. Na2 {[%emt 0:00:14]} Nd5 {[%emt 0:04:24]} 22. Rae1 {[%emt 0:03:34]} Ne3 {[%emt 0:05:24]} 23. Rf2 {[%emt 0:00:32]} Rac8 {[%emt 0:05:09]} 24. c3 {[%emt 0:07:45]} dxc3 {[%emt 0:16:24]} 25. bxc3 {[%emt 0:00:13]} Nd5 {[%emt 0:05:02]} 26. Rxe8+ {[%emt 0:00:18]} Rxe8 {[%emt 0:00:55]} 27. Nf3 {[%emt 0:07:38]} Re3 {[%emt 0:02:05]} 28. Rd2 {[%emt 0:04:09]} Nf4 {[%emt 0:05:57]} 29. Nc1 {[%emt 0:04:44]} Bxf3 {[%emt 0:02:39]} 30. Kf2 {[%emt 0:01:21]} Nxg2 {[%emt 0:01:33]} 31. c4 {[%emt 0:07:40]} bxc4 {[%emt 0:01:52]} 32. bxc4 {[%emt 0:00:10]} Bb7 {[%emt 0:01:02]} 33. d4 {[%emt 0:04:44]} Rc3 {[%emt 0:00:57]} 34. Ne2 {[%emt 0:06:48]} Rxc4 {[%emt 0:00:37]} 35. d5 {[%emt 0:00:21]} Nf4 {[%emt 0:03:21]} 36. Nxf4 {[%emt 0:01:43]} Rxf4+ {[%emt 0:00:01]} 37. Kg3 {[%emt 0:00:27]} Rc4 {[%emt 0:00:34]} 38. d6 {[%emt 0:02:28]} Rc8 {[%emt 0:00:02]} 39. Kf4 {[%emt 0:00:48]} Rd8 {[%emt 0:01:07] normal} 1-0